{"text_format":"1","workbook":"xlsx","n_sheets":4,"sheets":["Instructions","Detailing List","Printable Form","Response Fields"],"not_rendered":{"charts":0,"images":0,"macros":1,"external_links":0,"defined_names":7,"comments":0,"pivot_tables":0},"unopened":[],"bounds":{"document_bytes":16777216,"sheet_cells":100000,"rows_first":2000,"rows_last":500,"rows_between":2000,"halvings":0,"cell_chars":16384,"cell_head_chars":4096},"cells_cut":0,"cells_raw":0,"read":"whole","date_system":"1900"}

{"sheet":"Instructions","index":0,"n_rows":24,"n_cols":2,"rows_kept":24,"cut":false,"hidden":false,"merged":[[23,1,27,8],[0,0,1,8],[2,0,6,8],[36,1,38,8],[9,1,11,8],[12,1,14,8],[17,1,21,8],[30,1,33,8]]}
["Academic Detailing List\nInstructions"]
[]
["The accompanying list of physicians, physician-assistants, and nurse practitioners represents individuals/practices that have been selected for detailing. The list has been randomly sorted, but nevertheless represents individuals prescribing in high-burden areas. Please:\n1. Work through the list in order \n2. Add any providers detailed not on the list to the list (there is space for this at the end)."]
[]
[]
[]
[]
["There are two primary sheets in this workbook:"]
["1. Detailing List"]
[null,"The Detailing List is where we would like you to track your attempts at making contact with providers, detailing apppointments, and follow up visits."]
[]
[]
[null,"There are five buttons in the upper left corner of the sheet. These buttons toggle the different sections of the sheet. Simply toggle a section and complete fields as needed."]
[]
[]
[]
["2. Printable Form"]
[null,"We recognize that you may be out in the field when making contact attempts, or may not always have internet access for entering your efforts on the Detailing List. We included a printable form that can be completed and used later to complete the fields on the Detailing List."]
[]
[]
[]
[]
[]
[null,"Tips: \n1. Consider pre-completing forms with information from the list if you know you will be in an area with no internet access.\n2. Consider printing a few blank copies in case you have an inpromptu detailing.\n"]

{"sheet":"Detailing List","index":1,"n_rows":175,"n_cols":57,"rows_kept":175,"cut":false,"hidden":false,"merged":[[3,3,4,3],[3,39,4,39],[1,37,2,45],[3,51,4,51],[1,49,2,56],[3,41,4,41],[3,40,4,40],[3,52,4,52],[3,53,4,53],[3,35,4,35],[3,10,3,13],[3,15,3,17],[3,18,3,20],[3,21,3,23],[3,24,3,26],[3,27,3,29]]}
["Practices in Region 1: Academic Detailing List",null,null,null,null,null,null,null,null,null,null,null,null,null,null,null,null,null,null,null,null,null,null,null,null,null,null,null,null,null,null,null,null,null,null,null,null,"Topics:",null,null,null,null,null,null,null,null,null,null,null,"Topics:"]
["Please work through the list in order",null,null,null,null,null,null,null,null,null,null,null,null,null,null,null,null,null,null,null,null,null,null,null,null,null,null,null,null,null,null,null,null,null,null,null,null,"(1) background and overview (2) alternative therapies (3) informed consent (4) pain, risk and function assessments (5) urine drug screening (6) prescription drug monitoring program (CURES) (7) naloxone (8) buprenorphine (9) SUD management",null,null,null,null,null,null,null,null,null,null,null,"(1) background and overview (2) alternative therapies (3) informed consent (4) pain, risk and function assessments (5) urine drug screening (6) prescription drug monitoring program (CURES) (7) naloxone (8) buprenorphine (9) SUD management"]
[null,null,null,null,null,null,null,null,null,null,null,null,null,null,null,"Please enter up to five contacts attempts",null,null,null,null,null,null,null,null,null,null,null,null,null,null,null,"Please enter the date, time, and place"]
[null,null,null,"Assigned\nDetailer\n(opitonal)","Contact Information",null,null,null,null,null,"Please complete if known",null,null,null,"Contact \nAttempts","Contact #1",null,null,"Contact #2",null,null,"Contact #3",null,null,"Contact #4",null,null,"Contact #5",null,null,"Scheduled Detailing",null,null,null,null,"Detailer \n(if different from assigned)","Post\nVisit",null,null,"Number of Detailees\n(If more than 1, please add to list)","Length of Visit \n(minutes)","Topics Covered\n(Use topic listed above)",null,null,null,null,null,null,"Follow Up",null,null,"Number of Detailees\n(If more than 1, please add to list)","Length of Visit \n(minutes)","Topics Covered\n(Use topic listed above)"]
["Number","Name (Last, First)","Degree",null,null,"Address","City","County","State","Zip Code","Telephone","Email","Specialty","Clinic",null,"Date","Method","Result","Date","Method","Result","Date","Method","Result","Date","Method","Result","Date","Method","Result",null,"Scheduled","Date ","Time","Location",null,null,"Appointment Occurred","Detailer",null,null,null,"Issues/Concerns","Questions","Notes","If follow up, date","Follow-up Time","Follow-up Location",null,"Appointment Occurred","Detailer",null,null,null,"Issues/Concerns","Questions","Notes"]
["Example","Jane Doe (Example)","MD","Jones",null,"1234 Opioid Lane","Clearlake","Lake","CA",95422,8885551234,"jane.doe@clinic.org","Familiy Medicine","Lake County Health Clinic",{"$f":"IF(COUNT(P6,S6,V6,Y6,AB6)=0,\"\",COUNT(P6,S6,V6,Y6,AB6))","v":2},"2017-04-21","telephone","phone - left voicemail","2017-04-25","email","phone - spoke to provider",null,null,null,null,null,null,null,null,null,{"$f":"IF(AG6=0,\" \",AG6)","v":"2017-04-28"},"Yes","2017-04-28","13:00:00","Lake County Clinic","Jones",{"$f":"IF(AL6=0,\" \",AL6)","v":"Yes"},"Yes","Jones",1,30,"1,5,9","None",null,"Positive encounter, very open to suggestions","2017-07-28","1:00PM","Same place",{"$f":"IF(AT6=0,\" \",AT6)","v":"2017-07-28"},"No"]
[1,null,null,null,null,"PULSE URGENT CARE CENTER","REDDING","SHASTA","CA","96002",null,null,null,null,{"$f":"IF(COUNT(P7,S7,V7,Y7,AB7)=0,\"\",COUNT(P7,S7,V7,Y7,AB7))","v":""},null,null,null,null,null,null,null,null,null,null,null,null,null,null,null,{"$f":"IF(AG7=0,\" \",AG7)","v":" "},"No",null,null,null,null,{"$f":"IF(AL7=0,\" \",AL7)","v":" "},null,null,null,null,null,null,null,null,null,null,null,{"$f":"IF(AT7=0,\" \",AT7)","v":" "}]
[2,null,null,null,null,"2336 COURT STREET","REDDING","SHASTA","CA","96001",null,null,null,null,{"$f":"IF(COUNT(P8,S8,V8,Y8,AB8)=0,\"\",COUNT(P8,S8,V8,Y8,AB8))","v":""},null,null,null,null,null,null,null,null,null,null,null,null,null,null,null,{"$f":"IF(AG8=0,\" \",AG8)","v":" "},"No",null,null,null,null,null,null,null,null,null,null,null,null,null,null,null,null,{"$f":"IF(AT8=0,\" \",AT8)","v":" "}]
[3,null,null,null,null,"1441 LIBERTY ST","REDDING","SHASTA","CA","96001",null,null,null,null,"",null,null,null,null,null,null,null,null,null,null,null,null,null,null,null," ","No",null,null,null,null,null,null,null,null,null,null,null,null,null,null,null,null," "]
[4,null,null,null,null,"REDDING RANCHERIA TRIBAL HEALTH CENTER","REDDING","SHASTA","CA","96001",null,null,null,null,"",null,null,null,null,null,null,null,null,null,null,null,null,null,null,null," ","No",null,null,null,null,null,null,null,null,null,null,null,null,null,null,null,null," "]
[5,null,null,null,null,"2135 AIRPARK DRIVE","REDDING","SHASTA","CA","96001",null,null,null,null,"",null,null,null,null,null,null,null,null,null,null,null,null,null,null,null," ","No",null,null,null,null,null,null,null,null,null,null,null,null,null,null,null,null," "]
[6,null,null,null,null,"2401 HARTNELL AVENUE,STE200","REDDING","SHASTA","CA","96002",null,null,null,null,"",null,null,null,null,null,null,null,null,null,null,null,null,null,null,null," ","No",null,null,null,null,null,null,null,null,null,null,null,null,null,null,null,null," "]
[7,null,null,null,null,"1555 EAST ST.","REDDING","SHASTA","CA","96001",null,null,null,null,"",null,null,null,null,null,null,null,null,null,null,null,null,null,null,null," ","No",null,null,null,null,null,null,null,null,null,null,null,null,null,null,null,null," "]
[8,null,null,null,null,"SHASTA COMMUNITY HEALTH CENTER","REDDING","SHASTA","CA","96001",null,null,null,null,"",null,null,null,null,null,null,null,null,null,null,null,null,null,null,null," ","No",null,null,null,null,null,null,null,null,null,null,null,null,null,null,null,null," "]
[9,null,null,null,null,"MERCY ONCOLOGY CENTER","REDDING","SHASTA","CA","96002",null,null,null,null,"",null,null,null,null,null,null,null,null,null,null,null,null,null,null,null," ","No",null,null,null,null,null,null,null,null,null,null,null,null,null,null,null,null," "]
[10,null,null,null,null,"1230 EAST STREET","REDDING","SHASTA","CA","96001",null,null,null,null,"",null,null,null,null,null,null,null,null,null,null,null,null,null,null,null," ","No",null,null,null,null,null,null,null,null,null,null,null,null,null,null,null,null," "]
[11,null,null,null,null,"1035 PLACER STREET","REDDING","SHASTA","CA","96001",null,null,null,null,"",null,null,null,null,null,null,null,null,null,null,null,null,null,null,null," ","No",null,null,null,null,null,null,null,null,null,null,null,null,null,null,null,null," "]
[12,null,null,null,null,"SHASTA ORTHOPAEDICS & SPORTS MEDICINE","REDDING","SHASTA","CA","96001",null,null,null,null,"",null,null,null,null,null,null,null,null,null,null,null,null,null,null,null," ","No",null,null,null,null,null,null,null,null,null,null,null,null,null,null,null,null," "]
[13,null,null,null,null,"SHASTA ORTHOPAEDICS & SPORTS MEDICINE","REDDING","SHASTA","CA","96001",null,null,null,null,"",null,null,null,null,null,null,null,null,null,null,null,null,null,null,null," ","No",null,null,null,null,null,null,null,null,null,null,null,null,null,null,null,null," "]
[14,null,null,null,null,"DIGNITY HEALTH MEDICAL GROUP-NORTH STATE","REDDING","SHASTA","CA","96001",null,null,null,null,"",null,null,null,null,null,null,null,null,null,null,null,null,null,null,null," ","No",null,null,null,null,null,null,null,null,null,null,null,null,null,null,null,null," "]
[15,null,null,null,null,"36977 PARK AVENUE","BURNEY","SHASTA","CA","96013",null,null,null,null,"",null,null,null,null,null,null,null,null,null,null,null,null,null,null,null," ","No",null,null,null,null,null,null,null,null,null,null,null,null,null,null,null,null," "]
[16,null,null,null,null,"LIMITED TO OFFICIAL FEDERAL DUTIES ONLY","REDDING","SHASTA","CA","96002",null,null,null,null,"",null,null,null,null,null,null,null,null,null,null,null,null,null,null,null," ","No",null,null,null,null,null,null,null,null,null,null,null,null,null,null,null,null," "]
[17,null,null,null,null,"LIMITED TO OFFICIAL FEDERAL DUTIES ONLY","REDDING","SHASTA","CA","96002",null,null,null,null,"",null,null,null,null,null,null,null,null,null,null,null,null,null,null,null," ","No",null,null,null,null,null,null,null,null,null,null,null,null,null,null,null,null," "]
[18,null,null,null,null,"NORTHERN CA HEALTH SYSTEM","REDDING","SHASTA","CA","96002",null,null,null,null,"",null,null,null,null,null,null,null,null,null,null,null,null,null,null,null," ","No",null,null,null,null,null,null,null,null,null,null,null,null,null,null,null,null," "]
[19,null,null,null,null,"SHASTA COMMUNITY HEALTH CENTER","REDDING","SHASTA","CA","96001",null,null,null,null,"",null,null,null,null,null,null,null,null,null,null,null,null,null,null,null," ","No",null,null,null,null,null,null,null,null,null,null,null,null,null,null,null,null," "]
[20,null,null,null,null,"2510 AIRPARK DRIVE","REDDING","SHASTA","CA","96001",null,null,null,null,"",null,null,null,null,null,null,null,null,null,null,null,null,null,null,null," ","No",null,null,null,null,null,null,null,null,null,null,null,null,null,null,null,null," "]
[21,null,null,null,null,"1997","REDDING","SHASTA","CA","96001",null,null,null,null,"",null,null,null,null,null,null,null,null,null,null,null,null,null,null,null," ","No",null,null,null,null,null,null,null,null,null,null,null,null,null,null,null,null," "]
[22,null,null,null,null,"KAUSHIK V PATEL MD INC","REDDING","SHASTA","CA","96001",null,null,null,null,"",null,null,null,null,null,null,null,null,null,null,null,null,null,null,null," ","No",null,null,null,null,null,null,null,null,null,null,null,null,null,null,null,null," "]
[23,null,null,null,null,"ANDERSON MEDICAL ASSOCIATES","ANDERSON","SHASTA","CA","96007",null,null,null,null,"",null,null,null,null,null,null,null,null,null,null,null,null,null,null,null," ","No",null,null,null,null,null,null,null,null,null,null,null,null,null,null,null,null," "]
[24,null,null,null,null,"1255 LIBERTY STREET","REDDING","SHASTA","CA","96001",null,null,null,null,"",null,null,null,null,null,null,null,null,null,null,null,null,null,null,null," ","No",null,null,null,null,null,null,null,null,null,null,null,null,null,null,null,null," "]
[25,null,null,null,null,"1255 LIBERTY STREET","REDDING","SHASTA","CA","96001",null,null,null,null,"",null,null,null,null,null,null,null,null,null,null,null,null,null,null,null," ","No",null,null,null,null,null,null,null,null,null,null,null,null,null,null,null,null," "]
[26,null,null,null,null,"4215 FRONT STREET","SHASTA LAKE CITY","SHASTA","CA","96019",null,null,null,null,"",null,null,null,null,null,null,null,null,null,null,null,null,null,null,null," ","No",null,null,null,null,null,null,null,null,null,null,null,null,null,null,null,null," "]
[27,null,null,null,null,"ANDERSON MEDICAL ASSOCIATION","ANDERSON","SHASTA","CA","96007",null,null,null,null,"",null,null,null,null,null,null,null,null,null,null,null,null,null,null,null," ","No",null,null,null,null,null,null,null,null,null,null,null,null,null,null,null,null," "]
[28,null,null,null,null,"1760 GOLD STREET SUITE 600","REDDING","SHASTA","CA","96001",null,null,null,null,"",null,null,null,null,null,null,null,null,null,null,null,null,null,null,null," ","No",null,null,null,null,null,null,null,null,null,null,null,null,null,null,null,null," "]
[29,null,null,null,null,"LASSEN MEDICAL GROUP, INC.","COTTONWOOD","SHASTA","CA","96022",null,null,null,null,"",null,null,null,null,null,null,null,null,null,null,null,null,null,null,null," ","No",null,null,null,null,null,null,null,null,null,null,null,null,null,null,null,null," "]
[30,null,null,null,null,"2480 SONOMA STREET","REDDING","SHASTA","CA","96001",null,null,null,null,"",null,null,null,null,null,null,null,null,null,null,null,null,null,null,null," ","No",null,null,null,null,null,null,null,null,null,null,null,null,null,null,null,null," "]
[31,null,null,null,null,"2111 AIRPARK DRIVE","REDDING","SHASTA","CA","96001",null,null,null,null,"",null,null,null,null,null,null,null,null,null,null,null,null,null,null,null," ","No",null,null,null,null,null,null,null,null,null,null,null,null,null,null,null,null," "]
[32,null,null,null,null,"2123 EUREKA WAY","REDDING","SHASTA","CA","96001",null,null,null,null,"",null,null,null,null,null,null,null,null,null,null,null,null,null,null,null," ","No",null,null,null,null,null,null,null,null,null,null,null,null,null,null,null,null," "]
[33,null,null,null,null,"1555 EAST ST,SUITE 300A","REDDING","SHASTA","CA","96001",null,null,null,null,"",null,null,null,null,null,null,null,null,null,null,null,null,null,null,null," ","No",null,null,null,null,null,null,null,null,null,null,null,null,null,null,null,null," "]
[34,null,null,null,null,"HILL COUNTRY COMMUNITY CLINIC","ROUND MOUNTAIN","SHASTA","CA","96084",null,null,null,null,"",null,null,null,null,null,null,null,null,null,null,null,null,null,null,null," ","No",null,null,null,null,null,null,null,null,null,null,null,null,null,null,null,null," "]
[35,null,null,null,null,"1035 PLACER STREET","REDDING","SHASTA","CA","96001",null,null,null,null,"",null,null,null,null,null,null,null,null,null,null,null,null,null,null,null," ","No",null,null,null,null,null,null,null,null,null,null,null,null,null,null,null,null," "]
[36,null,null,null,null,"1755 COURT STREET","REDDING","SHASTA","CA","96001",null,null,null,null,"",null,null,null,null,null,null,null,null,null,null,null,null,null,null,null," ","No",null,null,null,null,null,null,null,null,null,null,null,null,null,null,null,null," "]
[37,null,null,null,null,"1115 WHISKEYTOWN CT.","REDDING","SHASTA","CA","96001",null,null,null,null,"",null,null,null,null,null,null,null,null,null,null,null,null,null,null,null," ","No",null,null,null,null,null,null,null,null,null,null,null,null,null,null,null,null," "]
[38,null,null,null,null,"HILL COUNTRY CLINIC","REDDING","SHASTA","CA","96003",null,null,null,null,"",null,null,null,null,null,null,null,null,null,null,null,null,null,null,null," ","No",null,null,null,null,null,null,null,null,null,null,null,null,null,null,null,null," "]
[39,null,null,null,null,"EMERGENCY MEDICINE","REDDING","SHASTA","CA","96001",null,null,null,null,"",null,null,null,null,null,null,null,null,null,null,null,null,null,null,null," ","No",null,null,null,null,null,null,null,null,null,null,null,null,null,null,null,null," "]
[40,null,null,null,null,"YOUR CARE, LLC","REDMOND","SHASTA","OR","97756",null,null,null,null,"",null,null,null,null,null,null,null,null,null,null,null,null,null,null,null," ","No",null,null,null,null,null,null,null,null,null,null,null,null,null,null,null,null," "]
[41,null,null,null,null,"2205 HILLTOP #2","REDDING","SHASTA","CA","96002",null,null,null,null,"",null,null,null,null,null,null,null,null,null,null,null,null,null,null,null," ","No",null,null,null,null,null,null,null,null,null,null,null,null,null,null,null,null," "]
[42,null,null,null,null,"1035 PLACER STREET","REDDING","SHASTA","CA","96001",null,null,null,null,"",null,null,null,null,null,null,null,null,null,null,null,null,null,null,null," ","No",null,null,null,null,null,null,null,null,null,null,null,null,null,null,null,null," "]
[43,null,null,null,null,"REDDING FAMILY MEDICAL GROUP","REDDING","SHASTA","CA","96001",null,null,null,null,"",null,null,null,null,null,null,null,null,null,null,null,null,null,null,null," ","No",null,null,null,null,null,null,null,null,null,null,null,null,null,null,null,null," "]
[44,null,null,null,null,"1555 EAST STREET","REDDING","SHASTA","CA","96001",null,null,null,null,"",null,null,null,null,null,null,null,null,null,null,null,null,null,null,null," ","No",null,null,null,null,null,null,null,null,null,null,null,null,null,null,null,null," "]
[45,null,null,null,null,"SHASTA SURGICAL SPECIALISTS","REDDING","SHASTA","CA","96001",null,null,null,null,"",null,null,null,null,null,null,null,null,null,null,null,null,null,null,null," ","No",null,null,null,null,null,null,null,null,null,null,null,null,null,null,null,null," "]
[46,null,null,null,null,"SHASTA INTERNAL MEDICINE, AMC","REDDING","SHASTA","CA","96099",null,null,null,null,"",null,null,null,null,null,null,null,null,null,null,null,null,null,null,null," ","No",null,null,null,null,null,null,null,null,null,null,null,null,null,null,null,null," "]
[47,null,null,null,null,"PRESTIGE URGENT CARE","REDDING","SHASTA","CA","96001",null,null,null,null,"",null,null,null,null,null,null,null,null,null,null,null,null,null,null,null," ","No",null,null,null,null,null,null,null,null,null,null,null,null,null,null,null,null," "]
[48,null,null,null,null,"2510 AIRPARK DRIVE STE 305","REDDING","SHASTA","CA","96001",null,null,null,null,"",null,null,null,null,null,null,null,null,null,null,null,null,null,null,null," ","No",null,null,null,null,null,null,null,null,null,null,null,null,null,null,null,null," "]
[49,null,null,null,null,"SHASTA COMMUNITY HC","REDDING","SHASTA","CA","96001",null,null,null,null,"",null,null,null,null,null,null,null,null,null,null,null,null,null,null,null," ","No",null,null,null,null,null,null,null,null,null,null,null,null,null,null,null,null," "]
[50,null,null,null,null,"SHASTA REGIONAL MEDICAL GROUP","REDDING","SHASTA","CA","96001",null,null,null,null,"",null,null,null,null,null,null,null,null,null,null,null,null,null,null,null," ","No",null,null,null,null,null,null,null,null,null,null,null,null,null,null,null,null," "]
[51,null,null,null,null,"REDDING RNCHRA TRIBAL HEALTH CENTER","REDDING","SHASTA","CA","96001",null,null,null,null,"",null,null,null,null,null,null,null,null,null,null,null,null,null,null,null," ",null,null,null,null,null,null,null,null,null,null,null,null,null,null,null,null,null," "]
[52,null,null,null,null,"2510 AIRPARK DRIVE, #201","REDDING","SHASTA","CA","96001",null,null,null,null,"",null,null,null,null,null,null,null,null,null,null,null,null,null,null,null," ",null,null,null,null,null,null,null,null,null,null,null,null,null,null,null,null,null," "]
[53,null,null,null,null,"1035 PLACER STREET","REDDING","SHASTA","CA","96001",null,null,null,null,"",null,null,null,null,null,null,null,null,null,null,null,null,null,null,null," ",null,null,null,null,null,null,null,null,null,null,null,null,null,null,null,null,null," "]
[54,null,null,null,null,"1255 LIBERTY STREET","REDDING","SHASTA","CA","96001",null,null,null,null,"",null,null,null,null,null,null,null,null,null,null,null,null,null,null,null," ",null,null,null,null,null,null,null,null,null,null,null,null,null,null,null,null,null," "]
[55,null,null,null,null,"2410 SONOMA ST","REDDING","SHASTA","CA","96001",null,null,null,null,"",null,null,null,null,null,null,null,null,null,null,null,null,null,null,null," ",null,null,null,null,null,null,null,null,null,null,null,null,null,null,null,null,null," "]
[56,null,null,null,null,"BLAKE MASSEY PA-C","REDDING","SHASTA","CA","96002",null,null,null,null,"",null,null,null,null,null,null,null,null,null,null,null,null,null,null,null," ",null,null,null,null,null,null,null,null,null,null,null,null,null,null,null,null,null," "]
[57,null,null,null,null,"CALIFORNIA EMERGENCY PHYSICIANS","REDDING","SHASTA","CA","96001",null,null,null,null,"",null,null,null,null,null,null,null,null,null,null,null,null,null,null,null," ",null,null,null,null,null,null,null,null,null,null,null,null,null,null,null,null,null," "]
[58,null,null,null,null,"ARTHRITIS ASSOC. OF REDDING","REDDING","SHASTA","CA","96001",null,null,null,null,"",null,null,null,null,null,null,null,null,null,null,null,null,null,null,null," ",null,null,null,null,null,null,null,null,null,null,null,null,null,null,null,null,null," "]
[59,null,null,null,null,"1035 PLACER STREET","REDDING","SHASTA","CA","96001",null,null,null,null,"",null,null,null,null,null,null,null,null,null,null,null,null,null,null,null," ",null,null,null,null,null,null,null,null,null,null,null,null,null,null,null,null,null," "]
[60,null,null,null,null,"2632 EDITH AVENUE","REDDING","SHASTA","CA","96001",null,null,null,null,"",null,null,null,null,null,null,null,null,null,null,null,null,null,null,null," ",null,null,null,null,null,null,null,null,null,null,null,null,null,null,null,null,null," "]
[61,null,null,null,null,"2701 OLD EUREKA WAY","REDDING","SHASTA","CA","96001",null,null,null,null,"",null,null,null,null,null,null,null,null,null,null,null,null,null,null,null," ",null,null,null,null,null,null,null,null,null,null,null,null,null,null,null,null,null," "]
[62,null,null,null,null,"2510 AIRPARK DRIVE","REDDING","SHASTA","CA","96001",null,null,null,null,"",null,null,null,null,null,null,null,null,null,null,null,null,null,null,null," ",null,null,null,null,null,null,null,null,null,null,null,null,null,null,null,null,null," "]
[63,null,null,null,null,"1115 WHISKEYTOWN CT #B","REDDING","SHASTA","CA","96001",null,null,null,null,"",null,null,null,null,null,null,null,null,null,null,null,null,null,null,null," ",null,null,null,null,null,null,null,null,null,null,null,null,null,null,null,null,null," "]
[64,null,null,null,null,"SHASTA ORTHOPAEDICS & SPORTS MEDICINE","REDDING","SHASTA","CA","96001",null,null,null,null,"",null,null,null,null,null,null,null,null,null,null,null,null,null,null,null," ",null,null,null,null,null,null,null,null,null,null,null,null,null,null,null,null,null," "]
[65,null,null,null,null,"SHASTA COMMUNITY HEALTH CENTER","REDDING","SHASTA","CA","96001",null,null,null,null,"",null,null,null,null,null,null,null,null,null,null,null,null,null,null,null," ",null,null,null,null,null,null,null,null,null,null,null,null,null,null,null,null,null," "]
[66,null,null,null,null,"856 RIVER BEND RD.","REDDING","SHASTA","CA","96003",null,null,null,null,{"$f":"IF(COUNT(P72,S72,V72,Y72,AB72)=0,\"\",COUNT(P72,S72,V72,Y72,AB72))","v":""},null,null,null,null,null,null,null,null,null,null,null,null,null,null,null,{"$f":"IF(AG72=0,\" \",AG72)","v":" "},null,null,null,null,null,null,null,null,null,null,null,null,null,null,null,null,null,{"$f":"IF(AT72=0,\" \",AT72)","v":" "}]
[67,null,null,null,null,"10775 FRENCH CREEK ROAD","PALO CEDRO","SHASTA","CA","96073",null,null,null,null,"",null,null,null,null,null,null,null,null,null,null,null,null,null,null,null," ",null,null,null,null,null,null,null,null,null,null,null,null,null,null,null,null,null," "]
[68,null,null,null,null,"3689 EUREKA WAY","REDDING","SHASTA","CA","96001",null,null,null,null,"",null,null,null,null,null,null,null,null,null,null,null,null,null,null,null," ",null,null,null,null,null,null,null,null,null,null,null,null,null,null,null,null,null," "]
[69,null,null,null,null,"2110 FERRY STREET","ANDERSON","SHASTA","CA","96007",null,null,null,null,"",null,null,null,null,null,null,null,null,null,null,null,null,null,null,null," ",null,null,null,null,null,null,null,null,null,null,null,null,null,null,null,null,null," "]
[70,null,null,null,null,"SHASTA COMMUNITY HEALTH CENTER","REDDING","SHASTA","CA","96002",null,null,null,null,"",null,null,null,null,null,null,null,null,null,null,null,null,null,null,null," ",null,null,null,null,null,null,null,null,null,null,null,null,null,null,null,null,null," "]
[71,null,null,null,null,"20641 COMMERCE WAY","BURNEY","SHASTA","CA","96013",null,null,null,null,"",null,null,null,null,null,null,null,null,null,null,null,null,null,null,null," ",null,null,null,null,null,null,null,null,null,null,null,null,null,null,null,null,null," "]
[72,null,null,null,null,"2410 SONOMA ST","REDDING","SHASTA","CA","96001",null,null,null,null,"",null,null,null,null,null,null,null,null,null,null,null,null,null,null,null," ",null,null,null,null,null,null,null,null,null,null,null,null,null,null,null,null,null," "]
[73,null,null,null,null,"REDDING FAMILY MEDICAL GROUP","REDDING","SHASTA","CA","96001",null,null,null,null,"",null,null,null,null,null,null,null,null,null,null,null,null,null,null,null," ",null,null,null,null,null,null,null,null,null,null,null,null,null,null,null,null,null," "]
[74,null,null,null,null,"2111 AIRPARK DRIVE","REDDING","SHASTA","CA","96001",null,null,null,null,"",null,null,null,null,null,null,null,null,null,null,null,null,null,null,null," ",null,null,null,null,null,null,null,null,null,null,null,null,null,null,null,null,null," "]
[75,null,null,null,null,"1920 CALIFORNIA STREET","REDDING","SHASTA","CA","96001",null,null,null,null,"",null,null,null,null,null,null,null,null,null,null,null,null,null,null,null," ",null,null,null,null,null,null,null,null,null,null,null,null,null,null,null,null,null," "]
[76,null,null,null,null,"465 MEMORIAL DR.","POCATELLO","SHASTA","ID","83201",null,null,null,null,"",null,null,null,null,null,null,null,null,null,null,null,null,null,null,null," ",null,null,null,null,null,null,null,null,null,null,null,null,null,null,null,null,null," "]
[77,null,null,null,null,"HILL COUNTRY HEALTH AND WELLNESS CENTER","ROUND MOUNTAIN","SHASTA","CA","96084",null,null,null,null,"",null,null,null,null,null,null,null,null,null,null,null,null,null,null,null," ",null,null,null,null,null,null,null,null,null,null,null,null,null,null,null,null,null," "]
[78,null,null,null,null,"2888 EUREKA WAY, STE. 201","REDDING","SHASTA","CA","96001",null,null,null,null,"",null,null,null,null,null,null,null,null,null,null,null,null,null,null,null," ",null,null,null,null,null,null,null,null,null,null,null,null,null,null,null,null,null," "]
[79,null,null,null,null,"1710 CHURN CREEK ROAD","REDDING","SHASTA","CA","96002",null,null,null,null,"",null,null,null,null,null,null,null,null,null,null,null,null,null,null,null," ",null,null,null,null,null,null,null,null,null,null,null,null,null,null,null,null,null," "]
[80,null,null,null,null,"1100 BUTTE ST","REDDING","SHASTA","CA","96001",null,null,null,null,"",null,null,null,null,null,null,null,null,null,null,null,null,null,null,null," ",null,null,null,null,null,null,null,null,null,null,null,null,null,null,null,null,null," "]
[81,null,null,null,null,"LIMITED TO OFFICIAL FEDERAL DUTIES ONLY","REDDING","SHASTA","CA","96002",null,null,null,null,"",null,null,null,null,null,null,null,null,null,null,null,null,null,null,null," ",null,null,null,null,null,null,null,null,null,null,null,null,null,null,null,null,null," "]
[82,null,null,null,null,"2510 AIRPARK DRIVE","REDDING","SHASTA","CA","96001",null,null,null,null,"",null,null,null,null,null,null,null,null,null,null,null,null,null,null,null," ",null,null,null,null,null,null,null,null,null,null,null,null,null,null,null,null,null," "]
[83,null,null,null,null,"2662 EDITH AVENUE","REDDING","SHASTA","CA","96001",null,null,null,null,"",null,null,null,null,null,null,null,null,null,null,null,null,null,null,null," ",null,null,null,null,null,null,null,null,null,null,null,null,null,null,null,null,null," "]
[84,null,null,null,null,"SHASTA COMMUNITY HEALTH CENTER","REDDING","SHASTA","CA","96001",null,null,null,null,"",null,null,null,null,null,null,null,null,null,null,null,null,null,null,null," ",null,null,null,null,null,null,null,null,null,null,null,null,null,null,null,null,null," "]
[85,null,null,null,null,"SHASTA REGINAL MEDICAL CENTER","REDDING","SHASTA","CA","96001",null,null,null,null,"",null,null,null,null,null,null,null,null,null,null,null,null,null,null,null," ",null,null,null,null,null,null,null,null,null,null,null,null,null,null,null,null,null," "]
[86,null,null,null,null,"5000 BECHELLI LN STE.102","REDDING","SHASTA","CA","96002",null,null,null,null,"",null,null,null,null,null,null,null,null,null,null,null,null,null,null,null," ",null,null,null,null,null,null,null,null,null,null,null,null,null,null,null,null,null," "]
[87,null,null,null,null,"LIMITED TO OFFICIAL FEDERAL DUTIES ONLY","REDDING","SHASTA","CA","96002",null,null,null,null,"",null,null,null,null,null,null,null,null,null,null,null,null,null,null,null," ",null,null,null,null,null,null,null,null,null,null,null,null,null,null,null,null,null," "]
[88,null,null,null,null,"301 HARTNELL AVE","REDDING","SHASTA","CA","96002",null,null,null,null,"",null,null,null,null,null,null,null,null,null,null,null,null,null,null,null," ",null,null,null,null,null,null,null,null,null,null,null,null,null,null,null,null,null," "]
[89,null,null,null,null,"2160 COURT STREET","REDDING","SHASTA","CA","96001",null,null,null,null,"",null,null,null,null,null,null,null,null,null,null,null,null,null,null,null," ",null,null,null,null,null,null,null,null,null,null,null,null,null,null,null,null,null," "]
[90,null,null,null,null,"SHASTA REGIONAL MEDICAL GROUP","REDDING","SHASTA","CA","96001",null,null,null,null,"",null,null,null,null,null,null,null,null,null,null,null,null,null,null,null," ",null,null,null,null,null,null,null,null,null,null,null,null,null,null,null,null,null," "]
[91,null,null,null,null,"REDDING FAMILY MEDICAL GROUP","REDDING","SHASTA","CA","96001",null,null,null,null,"",null,null,null,null,null,null,null,null,null,null,null,null,null,null,null," ",null,null,null,null,null,null,null,null,null,null,null,null,null,null,null,null,null," "]
[92,null,null,null,null,"LIMITED TO INDIAN HEALTH FACILITIES ONLY","REDDING","SHASTA","CA","96001",null,null,null,null,"",null,null,null,null,null,null,null,null,null,null,null,null,null,null,null," ",null,null,null,null,null,null,null,null,null,null,null,null,null,null,null,null,null," "]
[93,null,null,null,null,"SHASTA LAKE FAMILY HEALTH CLN","SHASTA LAKE","SHASTA","CA","96019",null,null,null,null,"",null,null,null,null,null,null,null,null,null,null,null,null,null,null,null," ",null,null,null,null,null,null,null,null,null,null,null,null,null,null,null,null,null," "]
[94,null,null,null,null,"LIMITED TO OFFICIAL FEDERAL DUTIES ONLY","REDDING","SHASTA","CA","96002",null,null,null,null,"",null,null,null,null,null,null,null,null,null,null,null,null,null,null,null," ",null,null,null,null,null,null,null,null,null,null,null,null,null,null,null,null,null," "]
[95,null,null,null,null,"1035 PLACER STREET","REDDING","SHASTA","CA","96001",null,null,null,null,"",null,null,null,null,null,null,null,null,null,null,null,null,null,null,null," ",null,null,null,null,null,null,null,null,null,null,null,null,null,null,null,null,null," "]
[96,null,null,null,null,"REDDING RANCHERIA TRIBAL HEALTH CENTER","REDDING","SHASTA","CA","96001",null,null,null,null,"",null,null,null,null,null,null,null,null,null,null,null,null,null,null,null," ",null,null,null,null,null,null,null,null,null,null,null,null,null,null,null,null,null," "]
[97,null,null,null,null,"1035 PLACER ST","REDDING","SHASTA","CA","96001",null,null,null,null,"",null,null,null,null,null,null,null,null,null,null,null,null,null,null,null," ",null,null,null,null,null,null,null,null,null,null,null,null,null,null,null,null,null," "]
[98,null,null,null,null,"3580 SANTA ROSA WAY","REDDING","SHASTA","CA","96003",null,null,null,null,"",null,null,null,null,null,null,null,null,null,null,null,null,null,null,null," ",null,null,null,null,null,null,null,null,null,null,null,null,null,null,null,null,null," "]
[99,null,null,null,null,"5145 SHASTA DAM BLVD","SHASTA LAKE","SHASTA","CA","96019",null,null,null,null,"",null,null,null,null,null,null,null,null,null,null,null,null,null,null,null," ",null,null,null,null,null,null,null,null,null,null,null,null,null,null,null,null,null," "]
[100,null,null,null,null,"3270 CHURN CREEK","REDDING","SHASTA","CA","96002",null,null,null,null,"",null,null,null,null,null,null,null,null,null,null,null,null,null,null,null," ",null,null,null,null,null,null,null,null,null,null,null,null,null,null,null,null,null," "]
[101,null,null,null,null,null,null,"SHASTA","CA","96001",null,null,null,null,"",null,null,null,null,null,null,null,null,null,null,null,null,null,null,null," ",null,null,null,null,null,null,null,null,null,null,null,null,null,null,null,null,null," "]
[102,null,null,null,null,null,null,"SHASTA","CA","96001",null,null,null,null,"",null,null,null,null,null,null,null,null,null,null,null,null,null,null,null," ",null,null,null,null,null,null,null,null,null,null,null,null,null,null,null,null,null," "]
[103,null,null,null,null,null,null,"SHASTA","CA","96001",null,null,null,null,"",null,null,null,null,null,null,null,null,null,null,null,null,null,null,null," ",null,null,null,null,null,null,null,null,null,null,null,null,null,null,null,null,null," "]
[104,null,null,null,null,null,null,"SHASTA","CA","96001",null,null,null,null,"",null,null,null,null,null,null,null,null,null,null,null,null,null,null,null," ",null,null,null,null,null,null,null,null,null,null,null,null,null,null,null,null,null," "]
[105,null,null,null,null,null,null,"SHASTA","CA","95422",null,null,null,null,"",null,null,null,null,null,null,null,null,null,null,null,null,null,null,null," ",null,null,null,null,null,null,null,null,null,null,null,null,null,null,null,null,null," "]
["Please Add Providers NOT on the list below"]
[106,null,null,null,null,null,null,null,null,null,null,null,null,null,"",null,null,null,null,null,null,null,null,null,null,null,null,null,null,null," ",null,null,null,null,null,null,null,null,null,null,null,null,null,null,null,null,null," "]
[107,null,null,null,null,null,null,null,null,null,null,null,null,null,"",null,null,null,null,null,null,null,null,null,null,null,null,null,null,null," ",null,null,null,null,null,null,null,null,null,null,null,null,null,null,null,null,null," "]
[108,null,null,null,null,null,null,null,null,null,null,null,null,null,"",null,null,null,null,null,null,null,null,null,null,null,null,null,null,null," ",null,null,null,null,null,null,null,null,null,null,null,null,null,null,null,null,null," "]
[109,null,null,null,null,null,null,null,null,null,null,null,null,null,"",null,null,null,null,null,null,null,null,null,null,null,null,null,null,null," ",null,null,null,null,null,null,null,null,null,null,null,null,null,null,null,null,null," "]
[110,null,null,null,null,null,null,null,null,null,null,null,null,null,"",null,null,null,null,null,null,null,null,null,null,null,null,null,null,null," ",null,null,null,null,null,null,null,null,null,null,null,null,null,null,null,null,null," "]
[111,null,null,null,null,null,null,null,null,null,null,null,null,null,"",null,null,null,null,null,null,null,null,null,null,null,null,null,null,null," ",null,null,null,null,null,null,null,null,null,null,null,null,null,null,null,null,null," "]
[112,null,null,null,null,null,null,null,null,null,null,null,null,null,"",null,null,null,null,null,null,null,null,null,null,null,null,null,null,null," ",null,null,null,null,null,null,null,null,null,null,null,null,null,null,null,null,null," "]
[113,null,null,null,null,null,null,null,null,null,null,null,null,null,"",null,null,null,null,null,null,null,null,null,null,null,null,null,null,null," ",null,null,null,null,null,null,null,null,null,null,null,null,null,null,null,null,null," "]
[114,null,null,null,null,null,null,null,null,null,null,null,null,null,"",null,null,null,null,null,null,null,null,null,null,null,null,null,null,null," ",null,null,null,null,null,null,null,null,null,null,null,null,null,null,null,null,null," "]
[115,null,null,null,null,null,null,null,null,null,null,null,null,null,"",null,null,null,null,null,null,null,null,null,null,null,null,null,null,null," ",null,null,null,null,null,null,null,null,null,null,null,null,null,null,null,null,null," "]
[116,null,null,null,null,null,null,null,null,null,null,null,null,null,"",null,null,null,null,null,null,null,null,null,null,null,null,null,null,null," ",null,null,null,null,null,null,null,null,null,null,null,null,null,null,null,null,null," "]
[117,null,null,null,null,null,null,null,null,null,null,null,null,null,"",null,null,null,null,null,null,null,null,null,null,null,null,null,null,null," ",null,null,null,null,null,null,null,null,null,null,null,null,null,null,null,null,null," "]
[118,null,null,null,null,null,null,null,null,null,null,null,null,null,"",null,null,null,null,null,null,null,null,null,null,null,null,null,null,null," ",null,null,null,null,null,null,null,null,null,null,null,null,null,null,null,null,null," "]
[119,null,null,null,null,null,null,null,null,null,null,null,null,null,"",null,null,null,null,null,null,null,null,null,null,null,null,null,null,null," ",null,null,null,null,null,null,null,null,null,null,null,null,null,null,null,null,null," "]
[120,null,null,null,null,null,null,null,null,null,null,null,null,null,"",null,null,null,null,null,null,null,null,null,null,null,null,null,null,null," ",null,null,null,null,null,null,null,null,null,null,null,null,null,null,null,null,null," "]
[121,null,null,null,null,null,null,null,null,null,null,null,null,null,"",null,null,null,null,null,null,null,null,null,null,null,null,null,null,null," ",null,null,null,null,null,null,null,null,null,null,null,null,null,null,null,null,null," "]
[122,null,null,null,null,null,null,null,null,null,null,null,null,null,"",null,null,null,null,null,null,null,null,null,null,null,null,null,null,null," ",null,null,null,null,null,null,null,null,null,null,null,null,null,null,null,null,null," "]
[123,null,null,null,null,null,null,null,null,null,null,null,null,null,"",null,null,null,null,null,null,null,null,null,null,null,null,null,null,null," ",null,null,null,null,null,null,null,null,null,null,null,null,null,null,null,null,null," "]
[124,null,null,null,null,null,null,null,null,null,null,null,null,null,"",null,null,null,null,null,null,null,null,null,null,null,null,null,null,null," ",null,null,null,null,null,null,null,null,null,null,null,null,null,null,null,null,null," "]
[125,null,null,null,null,null,null,null,null,null,null,null,null,null,"",null,null,null,null,null,null,null,null,null,null,null,null,null,null,null," ",null,null,null,null,null,null,null,null,null,null,null,null,null,null,null,null,null," "]
[126,null,null,null,null,null,null,null,null,null,null,null,null,null,"",null,null,null,null,null,null,null,null,null,null,null,null,null,null,null," ",null,null,null,null,null,null,null,null,null,null,null,null,null,null,null,null,null," "]
[127,null,null,null,null,null,null,null,null,null,null,null,null,null,"",null,null,null,null,null,null,null,null,null,null,null,null,null,null,null," ",null,null,null,null,null,null,null,null,null,null,null,null,null,null,null,null,null," "]
[128,null,null,null,null,null,null,null,null,null,null,null,null,null,"",null,null,null,null,null,null,null,null,null,null,null,null,null,null,null," ",null,null,null,null,null,null,null,null,null,null,null,null,null,null,null,null,null," "]
[129,null,null,null,null,null,null,null,null,null,null,null,null,null,{"$f":"IF(COUNT(P136,S136,V136,Y136,AB136)=0,\"\",COUNT(P136,S136,V136,Y136,AB136))","v":""},null,null,null,null,null,null,null,null,null,null,null,null,null,null,null,{"$f":"IF(AG136=0,\" \",AG136)","v":" "},null,null,null,null,null,null,null,null,null,null,null,null,null,null,null,null,null,{"$f":"IF(AT136=0,\" \",AT136)","v":" "}]
[130,null,null,null,null,null,null,null,null,null,null,null,null,null,"",null,null,null,null,null,null,null,null,null,null,null,null,null,null,null," ",null,null,null,null,null,null,null,null,null,null,null,null,null,null,null,null,null," "]
[131,null,null,null,null,null,null,null,null,null,null,null,null,null,"",null,null,null,null,null,null,null,null,null,null,null,null,null,null,null," ",null,null,null,null,null,null,null,null,null,null,null,null,null,null,null,null,null," "]
[132,null,null,null,null,null,null,null,null,null,null,null,null,null,"",null,null,null,null,null,null,null,null,null,null,null,null,null,null,null," ",null,null,null,null,null,null,null,null,null,null,null,null,null,null,null,null,null," "]
[133,null,null,null,null,null,null,null,null,null,null,null,null,null,"",null,null,null,null,null,null,null,null,null,null,null,null,null,null,null," ",null,null,null,null,null,null,null,null,null,null,null,null,null,null,null,null,null," "]
[134,null,null,null,null,null,null,null,null,null,null,null,null,null,"",null,null,null,null,null,null,null,null,null,null,null,null,null,null,null," ",null,null,null,null,null,null,null,null,null,null,null,null,null,null,null,null,null," "]
[135,null,null,null,null,null,null,null,null,null,null,null,null,null,"",null,null,null,null,null,null,null,null,null,null,null,null,null,null,null," ",null,null,null,null,null,null,null,null,null,null,null,null,null,null,null,null,null," "]
[136,null,null,null,null,null,null,null,null,null,null,null,null,null,"",null,null,null,null,null,null,null,null,null,null,null,null,null,null,null," ",null,null,null,null,null,null,null,null,null,null,null,null,null,null,null,null,null," "]
[137,null,null,null,null,null,null,null,null,null,null,null,null,null,"",null,null,null,null,null,null,null,null,null,null,null,null,null,null,null," ",null,null,null,null,null,null,null,null,null,null,null,null,null,null,null,null,null," "]
[138,null,null,null,null,null,null,null,null,null,null,null,null,null,"",null,null,null,null,null,null,null,null,null,null,null,null,null,null,null," ",null,null,null,null,null,null,null,null,null,null,null,null,null,null,null,null,null," "]
[139,null,null,null,null,null,null,null,null,null,null,null,null,null,"",null,null,null,null,null,null,null,null,null,null,null,null,null,null,null," ",null,null,null,null,null,null,null,null,null,null,null,null,null,null,null,null,null," "]
[140,null,null,null,null,null,null,null,null,null,null,null,null,null,"",null,null,null,null,null,null,null,null,null,null,null,null,null,null,null," ",null,null,null,null,null,null,null,null,null,null,null,null,null,null,null,null,null," "]
[141,null,null,null,null,null,null,null,null,null,null,null,null,null,"",null,null,null,null,null,null,null,null,null,null,null,null,null,null,null," ",null,null,null,null,null,null,null,null,null,null,null,null,null,null,null,null,null," "]
[142,null,null,null,null,null,null,null,null,null,null,null,null,null,"",null,null,null,null,null,null,null,null,null,null,null,null,null,null,null," ",null,null,null,null,null,null,null,null,null,null,null,null,null,null,null,null,null," "]
[143,null,null,null,null,null,null,null,null,null,null,null,null,null,"",null,null,null,null,null,null,null,null,null,null,null,null,null,null,null," ",null,null,null,null,null,null,null,null,null,null,null,null,null,null,null,null,null," "]
[144,null,null,null,null,null,null,null,null,null,null,null,null,null,"",null,null,null,null,null,null,null,null,null,null,null,null,null,null,null," ",null,null,null,null,null,null,null,null,null,null,null,null,null,null,null,null,null," "]
[145,null,null,null,null,null,null,null,null,null,null,null,null,null,"",null,null,null,null,null,null,null,null,null,null,null,null,null,null,null," ",null,null,null,null,null,null,null,null,null,null,null,null,null,null,null,null,null," "]
[146,null,null,null,null,null,null,null,null,null,null,null,null,null,"",null,null,null,null,null,null,null,null,null,null,null,null,null,null,null," ",null,null,null,null,null,null,null,null,null,null,null,null,null,null,null,null,null," "]
[147,null,null,null,null,null,null,null,null,null,null,null,null,null,"",null,null,null,null,null,null,null,null,null,null,null,null,null,null,null," ",null,null,null,null,null,null,null,null,null,null,null,null,null,null,null,null,null," "]
[148,null,null,null,null,null,null,null,null,null,null,null,null,null,"",null,null,null,null,null,null,null,null,null,null,null,null,null,null,null," ",null,null,null,null,null,null,null,null,null,null,null,null,null,null,null,null,null," "]
[149,null,null,null,null,null,null,null,null,null,null,null,null,null,"",null,null,null,null,null,null,null,null,null,null,null,null,null,null,null," ",null,null,null,null,null,null,null,null,null,null,null,null,null,null,null,null,null," "]
[150,null,null,null,null,null,null,null,null,null,null,null,null,null,"",null,null,null,null,null,null,null,null,null,null,null,null,null,null,null," ",null,null,null,null,null,null,null,null,null,null,null,null,null,null,null,null,null," "]
[151,null,null,null,null,null,null,null,null,null,null,null,null,null,"",null,null,null,null,null,null,null,null,null,null,null,null,null,null,null," ",null,null,null,null,null,null,null,null,null,null,null,null,null,null,null,null,null," "]
[152,null,null,null,null,null,null,null,null,null,null,null,null,null,"",null,null,null,null,null,null,null,null,null,null,null,null,null,null,null," ",null,null,null,null,null,null,null,null,null,null,null,null,null,null,null,null,null," "]
[153,null,null,null,null,null,null,null,null,null,null,null,null,null,"",null,null,null,null,null,null,null,null,null,null,null,null,null,null,null," ",null,null,null,null,null,null,null,null,null,null,null,null,null,null,null,null,null," "]
[154,null,null,null,null,null,null,null,null,null,null,null,null,null,"",null,null,null,null,null,null,null,null,null,null,null,null,null,null,null," ",null,null,null,null,null,null,null,null,null,null,null,null,null,null,null,null,null," "]
[155,null,null,null,null,null,null,null,null,null,null,null,null,null,"",null,null,null,null,null,null,null,null,null,null,null,null,null,null,null," ",null,null,null,null,null,null,null,null,null,null,null,null,null,null,null,null,null," "]
[156,null,null,null,null,null,null,null,null,null,null,null,null,null,"",null,null,null,null,null,null,null,null,null,null,null,null,null,null,null," ",null,null,null,null,null,null,null,null,null,null,null,null,null,null,null,null,null," "]
[157,null,null,null,null,null,null,null,null,null,null,null,null,null,"",null,null,null,null,null,null,null,null,null,null,null,null,null,null,null," ",null,null,null,null,null,null,null,null,null,null,null,null,null,null,null,null,null," "]
[158,null,null,null,null,null,null,null,null,null,null,null,null,null,"",null,null,null,null,null,null,null,null,null,null,null,null,null,null,null," ",null,null,null,null,null,null,null,null,null,null,null,null,null,null,null,null,null," "]
[159,null,null,null,null,null,null,null,null,null,null,null,null,null,"",null,null,null,null,null,null,null,null,null,null,null,null,null,null,null," ",null,null,null,null,null,null,null,null,null,null,null,null,null,null,null,null,null," "]
[160,null,null,null,null,null,null,null,null,null,null,null,null,null,"",null,null,null,null,null,null,null,null,null,null,null,null,null,null,null," ",null,null,null,null,null,null,null,null,null,null,null,null,null,null,null,null,null," "]
[161,null,null,null,null,null,null,null,null,null,null,null,null,null,"",null,null,null,null,null,null,null,null,null,null,null,null,null,null,null," ",null,null,null,null,null,null,null,null,null,null,null,null,null,null,null,null,null," "]
[162,null,null,null,null,null,null,null,null,null,null,null,null,null,"",null,null,null,null,null,null,null,null,null,null,null,null,null,null,null," ",null,null,null,null,null,null,null,null,null,null,null,null,null,null,null,null,null," "]
[163,null,null,null,null,null,null,null,null,null,null,null,null,null,"",null,null,null,null,null,null,null,null,null,null,null,null,null,null,null," ",null,null,null,null,null,null,null,null,null,null,null,null,null,null,null,null,null," "]
[164,null,null,null,null,null,null,null,null,null,null,null,null,null,"",null,null,null,null,null,null,null,null,null,null,null,null,null,null,null," ",null,null,null,null,null,null,null,null,null,null,null,null,null,null,null,null,null," "]
[165,null,null,null,null,null,null,null,null,null,null,null,null,null,"",null,null,null,null,null,null,null,null,null,null,null,null,null,null,null," ",null,null,null,null,null,null,null,null,null,null,null,null,null,null,null,null,null," "]
[166,null,null,null,null,null,null,null,null,null,null,null,null,null,"",null,null,null,null,null,null,null,null,null,null,null,null,null,null,null," ",null,null,null,null,null,null,null,null,null,null,null,null,null,null,null,null,null," "]
[167,null,null,null,null,null,null,null,null,null,null,null,null,null,"",null,null,null,null,null,null,null,null,null,null,null,null,null,null,null," ",null,null,null,null,null,null,null,null,null,null,null,null,null,null,null,null,null," "]
[168,null,null,null,null,null,null,null,null,null,null,null,null,null,"",null,null,null,null,null,null,null,null,null,null,null,null,null,null,null," ",null,null,null,null,null,null,null,null,null,null,null,null,null,null,null,null,null," "]

{"sheet":"Printable Form","index":2,"n_rows":37,"n_cols":8,"rows_kept":37,"cut":false,"hidden":false,"merged":[[28,6,28,8],[9,0,9,2],[29,6,29,8],[30,6,30,8],[31,6,31,8],[23,3,23,5],[24,3,24,5],[25,3,25,5],[26,3,26,5],[27,3,27,5],[28,3,28,5],[29,3,29,5],[30,3,30,5],[24,1,24,2],[23,1,23,2],[30,1,30,2],[23,6,23,8],[24,6,24,8],[25,6,25,8],[26,6,26,8],[27,6,27,8],[35,6,35,8],[36,1,36,8],[31,3,31,5],[32,3,32,5],[33,3,33,5],[34,3,34,5],[35,3,35,5],[33,1,33,2],[35,1,35,2],[34,1,34,2],[31,1,31,2],[32,1,32,2],[33,6,33,8],[34,6,34,8],[32,6,32,8],[27,1,27,2],[26,1,26,2],[25,1,25,2],[28,1,28,2],[29,1,29,2],[22,3,22,5],[9,3,9,7],[22,6,22,8],[21,0,21,1],[0,0,0,4],[13,1,13,2],[12,1,12,2],[20,0,20,2]]}
["PROCESS MEASURE TRACKING FORM"]
["DEMOGRAPHICS"]
["PRESCRIBER NAME"]
["DEGREE"]
["CLINIC NAME"]
["SPECIALITY"]
["ADDRESS"]
["TELEPHONE"]
["EMAIL"]
["CONTACT ATTEMPTS DOCUMENTATION",null,null,"Attempt"]
[null,null,null,"#1","#2","#3","#4","#5"]
["DATE","Date of contact attempt"]
["METHOD OF CONTACT","Options: (1) telephone, (2) email, (3) in-person visit"]
["RESULTS OF CONTACT","Options: (1) phone call no answer, (2) phone call left voicemail, (3) phone call spoke to non-provider e.g. receptionist, (4) phone call spoke to provider, (5) email no response, (6) email response"]
["IF CONTACT MADE"]
["     SCHEDULED","Options: yes/no"]
["     DATE","Date of appointment"]
["     TIME","Time of appointment"]
["     LOCATION","Include address, floor and room number"]
["     DETAILER ","Optional. Depends on tracking plan"]
["IF CONTACT IS NOT MADE REPEAT CONTACT ATTEMPTS AND TRACK SAME AS ABOVE"]
["POST-VISIT DOCUMENTATION"]
[null,null,null,"Initial Visit",null,null,"Follow-Up"]
["APPT. OCCURRED","Options: yes/no"]
["DETAILER","(Optional)"]
["DETAILEE(S)","Number of detailees, names and contact information for each"]
["LENGTH OF VISIT","Length detailing appointment (excluding wait time etc.)"]
["TOPICS COVERED               (ALL THAT APPLY)","(1) background and overview (2) alternative therapies (3) informed consent (4) pain, risk and function assessments (5) urine drug screening (6) prescription drug monitoring program (CURES) (7) naloxone (8) buprenorphine (9) SUD management"]
["ISSUES/CONCERNS","Consider adding to FAQ guide or discussing with team"]
["QUESTIONS","Consider adding to FAQ guide or discussing with team"]
["FOLLOW UP","Options: yes/no"]
["FOLLOW UP DATE","Date of appointment "]
["FOLLOW UP TIME","Time of appointment"]
["FOLLOW UP LOCATION","Include address, floor and room number"]
["DETAILER","Optional. Depends on tracking plan"]
["SPECIAL INSTRUCTIONS?","Special instructions for visit"]
["NOTES"]

{"sheet":"Response Fields","index":3,"n_rows":6,"n_cols":4,"rows_kept":6,"cut":false,"hidden":true,"merged":[]}
["telephone","phone - no answer","Yes","Ivan Petrzelka"]
["email","phone - left voicemail","No","Greg Greenberg"]
["text","phone - spoke to non-provider",null,"Tom Andrews"]
["in-person visit","phone - spoke to provider",null,"Christy Porter"]
[null,"email - no response"]
[null,"email - response"]